bitfinex/quotes_ETHUSD_20241003
["timestamp","ask_amount","ask_price","bid_price","bid_amount"]
[1727929306325,0.05359761,2397.7,2397.3,3.33705]
[1727929306615,3.5289,2397.8,2397.3,3.33705]
[1727929306822,0.05359761,2397.6,2397.3,3.33705]
[1727929307120,0.05354428,2397.7,2397.3,3.33705]
[1727929307303,3.5289,2397.8,2397.2,4.09727]
[1727929307509,3.33655,2397.7,2397.2,7.43441]
[1727929307813,0.05338064,2397.6,2397.2,4.09724]
[1727929308183,0.05338064,2397.6,2397.2,7.43438]
[1727929308486,0.05338064,2397.6,2397.2,4.09724]
[1727929308689,0.05338064,2397.6,2397.2,4.840704]
[1727929308875,6.33619,2398.0,2397.5,3.3368]
[1727929309077,3.1925,2398.1,2397.5,0.7707]
[1727929309281,3.33623,2398.0,2397.5,0.7707]
[1727929309510,3.33623,2398.0,2397.5,4.10749]
[1727929309682,6.67248,2398.0,2397.5,0.7707]
[1727929310110,3.33627,2397.9,2397.5,0.7707]
[1727929310314,3.33667,2397.6,2397.4,0.7505]
[1727929310511,3.33667,2397.6,2397.2,0.7505]
[1727929311717,0.1925,2397.7,2397.2,4.08771]
[1727929311919,3.52877,2397.9,2397.2,4.86132713]
[1727929312120,3.33627,2397.9,2397.4,3.33685]
[1727929312426,3.3362,2398.0,2397.3,0.8029]
[1727929312626,3.33639,2397.8,2397.3,0.8029]
[1727929312814,6.67287,2397.8,2397.3,0.8029]
[1727929313244,3.33639,2397.8,2397.3,0.8029]
[1727929313838,3.33639,2397.8,2397.3,4.13996]
[1727929316055,3.33628,2397.9,2397.4,3.33689]
[1727929316363,3.3362,2398.0,2397.5,3.33678]
[1727929316586,3.0,2398.1,2397.5,3.33678]
[1727929316587,6.33597,2398.1,2397.6,4.09464]
[1727929316932,10.72293,2398.2,2397.7,3.33651]
[1727929317129,14.05888,2398.2,2397.7,3.33651]
[1727929317675,3.33597,2398.1,2397.7,3.33651]
[1727929318672,3.33597,2398.1,2397.6,0.758]
[1727929318978,3.33597,2398.1,2397.6,4.09466]
[1727929320284,3.33612,2398.0,2397.6,4.09466]
[1727929320636,3.33612,2398.0,2397.6,0.758]
[1727929320842,6.67231,2398.0,2397.6,0.758]
[1727929321049,3.33612,2398.0,2397.6,0.758]
[1727929321666,0.05255065,2397.9,2397.6,0.758]
[1727929323831,3.38880065,2397.9,2397.6,0.758]
[1727929324134,3.33641,2397.8,2397.6,0.758]
[1727929324331,3.3366,2397.7,2397.3,0.7807]
[1727929324590,3.33681,2397.5,2397.3,0.7807]
[1727929325100,3.33681,2397.5,2397.0,0.7807]
[1727929325101,0.05254205,2397.4,2397.0,0.7807]
[1727929325261,3.38959205,2397.4,2397.0,0.7807]
[1727929326289,3.33708,2397.3,2397.0,0.7807]
[1727929326782,0.0526411,2397.2,2397.0,0.7807]
[1727929327383,3.33708,2397.3,2396.7,3.33779]
[1727929327384,0.05240423,2397.1,2396.7,0.8057]
[1727929327544,3.38976423,2397.1,2396.7,0.8057]
[1727929328486,0.05240423,2397.1,2396.7,4.1436]
[1727929328692,0.05240423,2397.1,2396.7,4.92724548]
[1727929328956,0.05240423,2397.0,2396.7,4.92724548]
[1727929329230,3.33723,2397.2,2396.7,4.92724548]
[1727929329433,0.05240423,2396.9,2396.7,4.92724548]
[1727929329631,3.33723,2397.2,2396.7,4.92724548]
[1727929329798,0.05240423,2396.8,2396.7,4.1436]
[1727929330136,3.33723,2397.2,2396.7,4.1436]
[1727929330432,3.33737,2397.1,2396.7,4.1436]
[1727929330594,3.38977423,2397.1,2396.7,4.1436]
[1727929333324,3.38977423,2397.1,2396.7,0.8057]
[1727929333518,0.05240423,2397.1,2396.7,4.14348]
[1727929333831,6.67425,2397.3,2396.9,0.8261]
[1727929334034,0.05240423,2397.0,2396.9,0.8261]
[1727929334205,3.33738,2397.1,2396.9,0.8261]
[1727929334411,0.05240423,2397.0,2396.9,0.8261]
[1727929334915,6.3369,2397.5,2396.9,4.58014]
[1727929335111,3.0,2397.6,2397.2,0.8261]
[1727929335344,6.33667,2397.6,2397.2,0.8261]
[1727929335723,0.0523353,2397.5,2397.2,0.8261]
[1727929336536,3.33706,2397.4,2397.2,0.8261]
[1727929337047,3.3894153,2397.3,2396.8,0.8304]
[1727929337550,3.3894153,2397.3,2396.8,4.69970478]
[1727929337760,0.0523353,2397.3,2396.9,0.7723]
[1727929337925,3.33682,2397.5,2396.9,4.10984]
[1727929338111,0.0523353,2397.4,2396.9,4.10984]
[1727929338625,0.0523353,2397.4,2396.9,4.96938978]
[1727929338824,0.0523353,2397.4,2397.0,3.33748]
[1727929339033,0.0523353,2397.4,2397.1,0.8122]
[1727929341948,3.3893453,2397.4,2397.1,0.8122]
[1727929344818,0.0523353,2397.4,2396.9,4.09514]
[1727929345018,0.0523353,2397.4,2396.9,4.78598122]
[1727929345019,3.33709,2397.3,2396.9,4.78598122]
[1727929345521,0.05059079,2397.2,2396.9,4.78598122]
[1727929345734,3.33709,2397.3,2396.9,4.78598122]
[1727929346170,0.05059079,2397.2,2396.9,4.78598122]
[1727929346833,0.05059079,2397.1,2396.9,4.78598122]
[1727929347020,0.05059079,2397.1,2396.9,4.09514]
[1727929347221,3.33709,2397.3,2396.9,4.09514]
[1727929347431,0.05068986,2397.0,2396.9,4.09514]
[1727929347687,3.33682,2397.5,2397.0,3.33749]
[1727929347873,3.33682,2397.5,2397.1,4.10963]
[1727929348792,3.33662,2397.7,2397.2,3.33721]
[1727929349304,3.33661,2397.7,2397.2,6.67436]
[1727929349589,3.33661,2397.7,2397.2,3.33715]
[1727929350192,3.33635,2397.9,2397.3,0.7728]
[1727929350488,3.33653,2397.7,2397.3,0.7728]
[1727929351253,6.67314,2397.7,2397.3,0.7728]
[1727929351453,3.33653,2397.7,2397.3,0.7728]
[1727929351704,0.04888709,2397.6,2397.3,0.7728]
[1727929353266,0.04888709,2397.6,2397.3,1.2505405]
[1727929353905,3.38555709,2397.6,2397.3,1.2505405]
[1727929354196,3.38555709,2397.6,2397.3,0.7728]
[1727929354393,3.33697,2397.4,2397.1,0.7964]
[1727929354695,0.04731355,2397.3,2397.1,0.7964]
[1727929356282,3.33682,2397.5,2397.1,0.7964]
[1727929356484,0.04730491,2397.2,2397.1,0.7964]
[1727929356688,0.04730491,2397.2,2397.1,1.209779]
[1727929356892,3.33682,2397.5,2397.1,1.209779]
[1727929357219,3.33682,2397.5,2397.1,0.7964]
[1727929357422,3.38423901,2397.4,2397.1,0.7964]
[1727929357973,0.04727901,2397.4,2397.1,0.7964]
[1727929359612,3.38431901,2397.4,2397.1,0.7964]
[1727929360316,6.72134901,2397.4,2397.1,0.7964]
[1727929360612,6.72134901,2397.4,2396.9,3.33761]
[1727929360613,3.3371,2397.3,2396.9,0.8157]
[1727929361274,0.04727901,2397.2,2396.9,4.15333]
[1727929361611,3.3371,2397.3,2396.9,0.8157]
[1727929361771,0.04727901,2397.2,2396.9,0.8157]
[1727929361978,3.5296,2397.3,2396.9,0.8157]
[1727929362378,3.38452725,2397.2,2396.7,4.43933058]
[1727929362616,3.38452725,2397.2,2396.7,5.31445606]
[1727929362827,3.33742,2397.1,2396.7,1.97655606]
[1727929363038,6.72182725,2397.2,2396.7,5.31447606]
[1727929363184,6.6746,2397.2,2396.7,5.31447606]
[1727929363528,3.38459725,2397.1,2396.7,0.8276]
[1727929363732,0.04722725,2397.1,2396.7,4.16552]
[1727929364634,3.38462725,2397.1,2396.7,0.8276]
[1727929365187,3.38462725,2397.1,2396.7,1.70272548]
[1727929365925,3.38462725,2397.1,2396.7,0.8276]
[1727929366314,0.04722725,2397.1,2396.7,0.8276]
[1727929366629,0.04722725,2397.1,2396.7,4.16552]
[1727929366797,0.04722725,2397.1,2396.7,5.19149691]
[1727929367716,0.04722725,2397.1,2396.7,6.06662239]
[1727929369132,0.04722725,2397.1,2396.8,4.16526]
[1727929369430,7.387,2397.5,2397.0,5.04022548]
[1727929369590,10.72387,2397.5,2397.1,0.63529137]
[1727929369788,10.72387,2397.5,2397.0,5.04010548]
[1727929369990,3.33687,2397.5,2397.0,5.04010548]
[1727929370398,3.33701,2397.4,2397.0,1.70272548]
[1727929370604,3.3371,2397.3,2397.0,0.8276]
[1727929371266,3.33723,2397.2,2397.0,0.8276]
[1727929371403,3.33743,2397.1,2396.8,1.70272548]
[1727929371860,3.33723,2397.2,2396.8,1.70272548]
[1727929372145,0.1925,2397.6,2396.9,0.95856423]
[1727929372300,3.33688,2397.5,2397.0,5.04015548]
[1727929372507,3.33688,2397.5,2397.0,5.12358467]
[1727929372845,3.33674,2397.6,2397.1,3.33735]
[1727929373010,6.67351,2397.6,2397.1,3.33735]
[1727929373346,3.33674,2397.6,2397.1,3.33735]
[1727929373809,3.33689,2397.5,2397.0,2.93616461]
[1727929374012,3.33689,2397.5,2397.1,0.87512548]
[1727929374344,3.33709,2397.3,2397.0,1.70272548]
[1727929374502,3.33709,2397.3,2397.0,0.8276]
[1727929376018,3.33686,2397.5,2397.0,2.33801985]
[1727929376224,3.33668,2397.6,2397.2,0.7915]
[1727929377151,3.33694,2397.4,2397.2,0.7915]
[1727929378745,6.67398,2397.4,2397.1,0.87512548]
[1727929379048,3.33694,2397.4,2397.0,1.69182548]
[1727929379345,3.1925,2397.7,2397.1,0.8259]
[1727929379646,3.33672,2397.6,2397.1,5.03832548]
[1727929379857,3.33681,2397.5,2397.1,1.70102548]
[1727929380144,3.33695,2397.4,2397.1,1.70102548]
[1727929381757,0.04404982,2397.3,2397.1,1.46103537]
[1727929382058,7.387,2398.0,2397.3,0.7829]
[1727929382262,3.3365,2397.8,2397.4,0.57880251]
[1727929382549,3.3365,2397.8,2397.3,4.99636025]
[1727929383256,3.33654,2397.7,2397.3,1.65929025]
[1727929383409,3.33683,2397.5,2397.3,0.7829]
[1727929384251,3.33705,2397.4,2397.1,1.70879025]
[1727929384451,3.33715,2397.3,2397.1,0.8324]
[1727929384745,3.33715,2397.3,2397.0,0.87639025]
[1727929385660,3.33724,2397.2,2396.9,0.87639025]
[1727929386007,3.33724,2397.2,2396.8,0.87639025]
[1727929386608,6.67457,2397.2,2396.8,0.87639025]
[1727929387110,3.33737,2397.1,2396.8,0.87639025]
[1727929388337,3.33725,2397.2,2396.8,0.87639025]
[1727929388639,3.33747,2397.1,2396.7,0.87639025]
[1727929388804,3.33747,2397.1,2396.8,0.87639025]
[1727929389912,3.33725,2397.2,2396.8,0.87639025]
[1727929390118,10.72378,2397.6,2397.2,0.7712]
[1727929390416,7.387,2397.6,2397.2,7.4455]
[1727929390623,3.52897,2397.8,2397.3,0.83218902]
[1727929391249,3.33656,2397.7,2397.3,0.83218902]
[1727929391640,6.86549,2397.8,2397.3,0.83218902]
[1727929391951,3.33656,2397.7,2397.4,0.91540293]
[1727929392150,3.33656,2397.7,2397.2,4.98470025]
[1727929392151,3.33668,2397.6,2397.2,1.64759025]
[1727929392354,3.33687,2397.5,2397.2,1.64759025]
[1727929392532,3.33687,2397.5,2397.2,0.7712]
[1727929394947,3.33668,2397.6,2397.2,0.7712]
[1727929395145,3.33668,2397.6,2397.2,1.73471085]
[1727929395876,6.67346,2397.6,2397.2,1.73471085]
[1727929396165,6.67346,2397.6,2397.2,0.7712]
[1727929396742,0.04250614,2397.5,2397.2,0.7712]
[1727929396947,3.37943614,2397.5,2397.2,0.7712]
[1727929397250,0.04250614,2397.5,2397.2,0.7712]
[1727929399464,0.04250614,2397.5,2397.2,1.64759025]
[1727929399651,0.04250614,2397.5,2397.2,2.78611419]
[1727929401039,0.04250614,2397.5,2397.3,3.33707]
[1727929401248,0.04250614,2397.5,2397.4,4.10624]
[1727929401443,10.72293,2398.2,2397.4,2.08198822]
[1727929401444,3.3362,2398.0,2397.4,2.08198822]
[1727929401659,3.33641,2397.8,2397.4,1.6445043]
[1727929401837,6.67287,2397.8,2397.4,0.7693]
[1727929402032,3.33641,2397.8,2397.4,0.7693]
[1727929402262,0.03713809,2397.7,2397.4,1.6445043]
[1727929402465,0.03713809,2397.7,2397.4,0.7693]
[1727929402645,3.33641,2397.8,2397.4,0.7693]
[1727929402853,0.03713809,2397.7,2397.4,0.7693]
[1727929403379,3.33641,2397.8,2397.4,0.7693]
[1727929403544,0.03713809,2397.6,2397.4,0.7693]
[1727929403735,3.33641,2397.8,2397.4,1.84627365]
[1727929403935,0.03713809,2397.5,2397.4,0.7693]
[1727929404162,3.33668,2397.6,2397.2,1.6483043]
[1727929404376,3.33668,2397.6,2397.2,0.7731]
[1727929404377,0.03713809,2397.5,2397.2,0.7731]
[1727929406130,3.37395809,2397.5,2397.2,0.7731]
[1727929406744,0.03713809,2397.5,2397.2,0.7731]
[1727929407685,0.03713809,2397.5,2397.2,5.07383725]
[1727929408039,3.33656,2397.7,2397.2,5.07383725]
[1727929408283,0.03719865,2397.6,2397.2,4.11026]
[1727929409543,3.37393865,2397.6,2397.2,0.7731]
[1727929412567,0.03719865,2397.6,2397.3,4.2121643]
[1727929413079,0.03719865,2397.5,2397.2,5.61535255]
[1727929413262,0.03719865,2397.5,2397.2,4.9855243]
[1727929413468,3.33654,2397.7,2397.2,4.9855243]
[1727929413650,0.03719865,2397.4,2397.2,4.9855243]
[1727929413852,3.33654,2397.7,2397.2,4.9855243]
[1727929414073,0.03719865,2397.6,2397.2,4.9855243]
[1727929414237,0.03719865,2397.6,2397.2,5.77209926]
[1727929415077,3.33654,2397.7,2397.2,5.77209926]
[1727929415700,3.33654,2397.7,2397.2,9.10925926]
[1727929415995,3.33654,2397.7,2397.3,0.8752043]
[1727929416550,3.33654,2397.7,2397.2,5.77203926]
[1727929417190,3.33654,2397.7,2397.2,9.10918926]
[1727929417395,3.33649,2397.8,2397.3,4.37925775]
[1727929417700,3.33649,2397.8,2397.3,1.91739205]
[1727929417896,3.33654,2397.7,2397.3,1.91739205]
[1727929420590,3.33654,2397.7,2397.3,1.04218775]
[1727929421371,3.33654,2397.7,2397.3,1.91739205]
[1727929421696,3.33654,2397.7,2397.3,1.04218775]
[1727929421857,3.33654,2397.7,2397.3,1.91739205]
[1727929422385,3.33649,2397.8,2397.3,5.25442205]
[1727929422697,3.33628,2397.9,2397.5,0.7506]
[1727929422920,3.33647,2397.8,2397.5,0.7506]
[1727929423128,3.33647,2397.8,2397.3,4.9628343]
[1727929423328,3.33647,2397.8,2397.3,6.07999651]
[1727929423828,3.5291,2397.7,2397.3,1.6258043]
[1727929424029,3.5291,2397.7,2397.3,0.7506]
[1727929425690,6.86572,2397.7,2397.3,0.7506]
[1727929425888,3.33667,2397.6,2397.3,0.7506]
[1727929426402,6.86571,2397.7,2397.3,0.7506]
[1727929426649,3.5291,2397.7,2397.3,0.7506]
[1727929426983,3.5291,2397.7,2397.2,4.2124243]
[1727929427186,6.86573,2397.7,2397.2,4.2124243]
[1727929427583,6.86573,2397.7,2397.2,0.8752043]
[1727929427584,3.33667,2397.6,2397.2,0.8752043]
[1727929430190,3.52904,2397.7,2397.2,4.2123843]
[1727929430606,6.86565,2397.7,2397.2,4.2123843]
[1727929431143,3.33668,2397.6,2397.2,0.8752043]
[1727929431951,3.3369,2397.5,2397.1,1.6656043]
[1727929432103,3.5291,2397.7,2397.2,3.33721]
[1727929432304,3.5291,2397.7,2397.2,4.2124143]
[1727929433197,6.8657,2397.7,2397.2,4.2124143]
[1727929434408,3.5291,2397.7,2397.2,4.2124143]
[1727929434610,3.33667,2397.6,2397.2,4.2124143]
[1727929435443,3.33667,2397.6,2397.3,0.8752043]
[1727929436103,3.33667,2397.6,2397.2,4.2124143]
[1727929436304,3.33667,2397.6,2397.2,5.01898965]
[1727929436512,3.33667,2397.6,2397.3,0.8752043]
[1727929437208,6.67325,2397.7,2397.4,0.7615]
[1727929438448,3.3367,2397.6,2397.4,0.7615]
[1727929438632,1.45813618,2398.0,2397.4,1.47081079]
[1727929438633,3.33632,2397.9,2397.4,1.47081079]
[1727929438832,3.33632,2397.9,2397.4,2.34601509]
[1727929438833,3.33641,2397.8,2397.4,2.34601509]
[1727929439016,3.0,2398.1,2397.5,4.15573]
[1727929439017,9.67215,2398.1,2397.5,4.15573]
[1727929439218,6.67215,2398.1,2397.6,0.90771751]
[1727929439417,6.67215,2398.1,2397.7,0.819]
[1727929439644,3.33619,2398.0,2397.7,0.819]
[1727929440253,3.33627,2397.9,2397.7,0.819]
[1727929441910,6.67259,2397.9,2397.7,0.819]
[1727929442547,3.33605,2398.1,2397.7,0.819]
[1727929442855,3.33584,2398.2,2397.7,4.65853743]
[1727929443012,3.33584,2398.2,2397.7,8.87018173]
[1727929443207,3.33584,2398.2,2397.7,7.99498743]
[1727929443451,3.33584,2398.2,2397.8,1.01002336]
[1727929444026,6.67174,2398.2,2397.8,1.01002336]
[1727929444220,3.33598,2398.1,2397.8,1.01002336]
[1727929446456,3.33584,2398.2,2397.8,1.01002336]
[1727929446747,3.33584,2398.2,2397.9,0.7899]
[1727929446949,6.67174,2398.2,2397.9,0.7899]
[1727929447148,3.33584,2398.2,2397.9,0.7899]
[1727929447323,3.33597,2398.1,2397.9,0.7899]
[1727929448113,3.33611,2398.0,2397.6,1.6646043]
[1727929448435,3.3364,2397.8,2397.6,0.7894]
[1727929448950,3.33653,2397.7,2397.4,1.7045043]
[1727929449256,3.33653,2397.7,2397.4,0.8293]
[1727929450506,3.3364,2397.8,2397.4,0.8293]
[1727929450507,3.33668,2397.6,2397.4,0.8293]
[1727929452922,3.3364,2397.8,2397.4,0.8293]
[1727929453257,3.33633,2397.9,2397.4,4.16614]
[1727929453425,3.33633,2397.9,2397.4,5.13525125]
[1727929453754,3.3364,2397.8,2397.4,2.67361555]
[1727929453964,3.3364,2397.8,2397.4,0.8293]
[1727929454929,3.33653,2397.7,2397.4,0.8293]
[1727929456447,3.33669,2397.6,2397.3,0.8752043]
[1727929456623,3.33669,2397.6,2397.2,1.6737043]
[1727929457017,3.33682,2397.5,2397.2,1.6737043]
[1727929457448,3.33702,2397.4,2397.2,0.8752043]
[1727929457647,3.33702,2397.4,2397.1,0.8752043]
[1727929457847,3.33702,2397.4,2397.0,1.6737043]
[1727929459059,3.3371,2397.3,2397.0,1.6737043]
[1727929459565,3.33694,2397.4,2397.0,1.6737043]
[1727929460322,3.33688,2397.5,2397.0,5.0112043]
[1727929460526,6.67378,2397.5,2397.0,5.0112043]
[1727929461157,3.33688,2397.5,2397.0,5.0112043]
[1727929461348,3.33696,2397.4,2397.0,5.0112043]
[1727929461939,3.33696,2397.4,2397.0,1.6737043]
[1727929463454,3.33696,2397.4,2397.0,0.7985]
[1727929464374,3.52912,2397.7,2397.1,0.7834]
[1727929464582,3.33662,2397.7,2397.2,0.7834]
[1727929464780,3.3367,2397.6,2397.2,0.7834]
[1727929464978,3.3367,2397.6,2397.2,1.37421262]
[1727929465269,3.33662,2397.7,2397.2,4.71143262]
[1727929465424,6.67328,2397.7,2397.2,1.37421262]
[1727929465625,3.33671,2397.6,2397.2,1.37421262]
[1727929466240,3.33682,2397.5,2397.2,1.37421262]
[1727929470443,6.6737,2397.5,2397.2,1.37421262]
[1727929470769,3.33682,2397.5,2397.2,1.37421262]
[1727929472282,6.67324,2397.7,2397.2,1.37421262]
[1727929472670,3.3367,2397.6,2397.2,1.37421262]
[1727929472857,3.3367,2397.6,2397.3,0.47115326]
[1727929473544,3.33635,2397.9,2397.4,4.15107]
[1727929473771,3.33635,2397.9,2397.5,0.8142]
[1727929473941,3.33581,2398.3,2397.9,0.8142]
[1727929474149,3.33581,2398.3,2398.0,0.415058]
[1727929474385,3.33581,2398.3,2397.9,0.85689339]
[1727929474586,7.387,2398.7,2398.2,0.8224]
[1727929474587,3.33526,2398.7,2398.2,0.8224]
[1727929474794,0.1925,2398.9,2398.3,0.415828]
[1727929474993,0.1925,2398.9,2398.2,0.8224]
[1727929474994,3.33569,2398.3,2398.2,0.8224]
[1727929475291,3.33569,2398.3,2398.0,0.7757]
[1727929476658,3.33555,2398.4,2398.0,0.7757]
[1727929476984,3.33579,2398.3,2398.0,0.7757]
[1727929480657,3.33555,2398.4,2398.0,0.7757]
[1727929480864,3.33584,2398.2,2398.0,0.7757]
[1727929485697,3.33584,2398.2,2397.8,0.8214]
[1727929485994,3.33584,2398.2,2397.8,4.15777]
[1727929486557,3.33564,2398.4,2397.8,4.15777]
[1727929486987,3.33564,2398.4,2397.9,3.33624]
[1727929487856,6.67126,2398.4,2397.9,3.33624]
[1727929488803,3.33576,2398.3,2397.8,0.8214]
[1727929490103,3.33576,2398.3,2397.8,4.15776]
[1727929491188,3.33583,2398.2,2397.8,0.8214]
[1727929491373,6.67174,2398.2,2397.8,0.8214]
[1727929491573,3.33598,2398.1,2397.8,0.8214]
[1727929491784,3.33583,2398.2,2397.8,0.8214]
[1727929492502,6.67178,2398.2,2397.8,0.8214]
[1727929492805,3.33599,2398.1,2397.8,0.8214]
[1727929493167,3.52833,2398.2,2397.8,0.8214]
[1727929494173,3.33583,2398.2,2397.8,0.8214]
[1727929494583,6.86382,2398.4,2397.8,4.15775]
[1727929494816,3.33564,2398.4,2398.0,0.8219]
[1727929495186,3.33535,2398.6,2398.1,3.33595]
[1727929495525,6.67071,2398.6,2398.1,3.33595]
[1727929495671,6.67071,2398.6,2398.1,4.085353]
[1727929496587,3.33548,2398.5,2398.1,0.749403]
[1727929497018,3.3356,2398.4,2398.0,0.8219]
[1727929500636,3.33548,2398.5,2398.0,4.15794]
[1727929500838,6.33523,2398.7,2398.1,3.33589]
[1727929501051,3.33536,2398.6,2398.2,0.796]
[1727929502108,3.33523,2398.7,2398.2,0.796]
[1727929502327,3.33523,2398.7,2398.3,0.7967]
[1727929502705,3.33497,2398.9,2398.4,4.13218]
[1727929503041,10.72167,2399.1,2398.7,0.7967]
[1727929503042,6.66935,2399.1,2398.7,0.7967]
[1727929503357,3.33467,2399.1,2398.7,1.209896]
[1727929503517,3.33467,2399.1,2398.7,0.7967]
[1727929504663,3.33436,2399.3,2398.9,0.7848]
[1727929505162,3.33412,2399.5,2398.9,0.7848]
[1727929505305,3.33412,2399.5,2398.8,4.64833617]
[1727929505306,3.33412,2399.5,2399.1,0.7848]
[1727929505707,3.33412,2399.5,2399.1,0.86815384]
[1727929505957,3.33412,2399.5,2399.1,1.41144341]
[1727929506109,0.03658127,2399.4,2399.2,0.7848]
[1727929506453,3.33392,2399.6,2399.2,0.7848]
[1727929506614,0.03658127,2399.3,2399.2,1.75146944]
[1727929506811,3.33382,2399.7,2399.2,1.71586253]
[1727929507015,0.03658127,2399.3,2399.2,1.79921161]
[1727929507215,3.33382,2399.7,2399.2,1.71586253]
[1727929507509,3.33382,2399.7,2399.4,0.7512]
[1727929508710,3.33397,2399.6,2399.4,0.7512]
[1727929508909,3.33402,2399.5,2399.4,0.7512]
[1727929509151,2.8534942,2399.6,2399.0,0.8026]
[1727929509309,6.66881,2399.3,2399.0,0.8026]
[1727929509512,3.33438,2399.3,2399.0,0.8026]
[1727929509854,3.33482,2399.0,2398.6,0.7853]
[1727929510914,3.3348,2399.0,2398.6,0.7853]
[1727929511430,6.66964,2399.0,2398.6,0.7853]
[1727929511631,3.3348,2399.0,2398.6,0.7853]
[1727929512658,3.33453,2399.2,2398.6,4.20386434]
[1727929512821,6.66904,2399.2,2398.6,4.20386434]
[1727929513152,6.66904,2399.2,2398.6,4.95778177]
[1727929513563,3.33458,2399.1,2398.6,4.95778177]
[1727929513923,3.33451,2399.2,2398.6,4.95778177]
[1727929514262,3.33451,2399.2,2398.7,3.33513]
[1727929514554,3.33451,2399.2,2398.6,1.53921743]
[1727929514757,3.33458,2399.1,2398.6,1.53921743]
[1727929515526,3.33472,2399.0,2398.6,1.53921743]
[1727929515724,3.33472,2399.0,2398.6,0.7853]
[1727929515725,3.33486,2398.9,2398.6,0.7853]
[1727929515948,3.33459,2399.1,2398.6,0.7853]
[1727929516336,3.33459,2399.1,2398.6,1.19737]
[1727929516566,3.33453,2399.2,2398.7,0.7769]
[1727929516720,3.33453,2399.2,2398.7,4.11198]
[1727929516921,3.33461,2399.1,2398.7,0.7769]
[1727929519949,3.33472,2399.0,2398.7,0.7769]
[1727929520437,3.335,2398.8,2398.7,0.7769]
[1727929521971,3.33515,2398.7,2398.4,0.7669]
[1727929522672,0.1925,2399.1,2398.4,4.10244]
[1727929522673,6.66967,2399.0,2398.4,4.10244]
[1727929522826,6.66967,2399.0,2398.4,4.846277]
[1727929523163,3.33457,2399.2,2398.6,4.15116]
[1727929523369,3.33472,2399.0,2398.6,4.15116]
[1727929524869,3.33472,2399.0,2398.6,0.8159]
[1727929525672,6.67009,2398.8,2398.6,0.8159]
[1727929525881,3.33501,2398.8,2398.6,0.8159]
[1727929526059,3.33513,2398.7,2398.6,0.8159]
[1727929527075,3.33501,2398.8,2398.6,0.8159]
[1727929529280,6.6701,2398.8,2398.6,0.8159]
[1727929529441,3.33501,2398.8,2398.6,0.8159]
[1727929529862,3.33493,2398.9,2398.6,0.8159]
[1727929533174,3.33482,2399.0,2398.6,0.8159]
[1727929533175,6.66966,2399.0,2398.6,0.8159]
[1727929533486,3.33482,2399.0,2398.6,0.8159]
[1727929533786,3.33487,2398.9,2398.6,0.8159]
[1727929535237,1.42158809,2399.3,2398.6,0.8159]
[1727929535440,3.33466,2399.1,2398.6,4.15115]
[1727929535785,3.33466,2399.1,2398.6,5.02271281]
[1727929536104,10.72126,2399.4,2398.9,3.33486]
[1727929536250,10.72126,2399.4,2399.0,1.32110481]
[1727929536454,10.72126,2399.4,2399.0,0.7861]
[1727929536866,10.72126,2399.4,2398.2,0.54908389]
[1727929536867,3.33555,2398.4,2398.2,0.54908389]
[1727929537068,1.70701826,2398.3,2398.2,0.54908389]
[1727929537270,5.04270826,2398.3,2398.2,0.54908389]
[1727929537600,3.33569,2398.3,2398.2,0.54908389]
[1727929537805,1.42158809,2398.5,2398.0,0.7861]
[1727929537806,0.1925,2398.5,2398.0,0.7861]
[1727929538103,1.42158809,2398.7,2398.0,0.7861]
[1727929538267,3.52764,2398.7,2398.0,0.7861]
[1727929538458,3.33529,2398.6,2398.0,0.7861]
[1727929539056,4.75672809,2398.7,2398.0,0.7861]
[1727929539402,4.75672809,2398.7,2397.8,3.33636]
[1727929539403,3.33514,2398.7,2398.2,0.7745]
[1727929541270,6.67039,2398.7,2398.2,0.7745]
[1727929541695,3.33514,2398.7,2398.2,0.7745]
[1727929542012,3.33529,2398.6,2398.2,0.7745]
[1727929542602,3.33569,2398.3,2398.2,0.7745]
[1727929542802,3.33569,2398.3,2397.8,0.7941]
[1727929543094,3.33584,2398.2,2397.8,1.42595725]
[1727929543311,3.33584,2398.2,2397.8,0.7941]
[1727929543476,3.33603,2398.1,2397.8,0.7941]
[1727929544601,3.33584,2398.2,2397.8,0.7941]
[1727929546396,3.33597,2398.1,2397.8,0.7941]
[1727929546665,3.33584,2398.2,2397.8,0.7941]
[1727929546903,6.67178,2398.2,2397.8,0.7941]
[1727929547413,3.33599,2398.1,2397.8,0.7941]
[1727929547785,3.33584,2398.2,2397.8,0.7941]
[1727929548300,6.67175,2398.2,2397.8,0.7941]
[1727929548980,3.33605,2398.1,2397.8,0.7941]
[1727929551079,6.67178,2398.2,2397.8,0.7941]
[1727929551987,3.336,2398.1,2397.8,0.7941]
[1727929552187,3.33584,2398.2,2397.8,0.7941]
[1727929552618,3.33565,2398.4,2397.8,1.207175]
[1727929552776,3.33565,2398.4,2397.9,0.7741]
[1727929553171,3.33563,2398.4,2397.9,0.7741]
[1727929553377,3.33573,2398.3,2397.9,0.7741]
[1727929553703,13.72215,2398.7,2398.0,0.7741]
[1727929553704,3.33537,2398.6,2398.0,0.7741]
[1727929553909,3.33537,2398.6,2398.2,0.7741]
[1727929553910,3.3355,2398.5,2398.2,0.7741]
[1727929555793,3.33556,2398.4,2398.2,0.7741]
[1727929556118,3.33569,2398.3,2398.2,0.7741]
[1727929557522,3.33556,2398.4,2397.9,0.7741]
[1727929557695,3.33583,2398.2,2397.9,0.7741]
[1727929558695,3.33556,2398.4,2397.9,0.7741]
[1727929558696,3.33556,2398.4,2397.9,0.53988293]
[1727929558901,3.33556,2398.4,2397.9,0.7741]
[1727929559214,3.33578,2398.3,2397.9,0.7741]
[1727929562915,3.33556,2398.4,2397.9,4.11031]
[1727929563110,3.33538,2398.6,2398.1,0.7968]
[1727929563313,3.33553,2398.5,2398.1,0.8294]
[1727929563698,3.33536,2398.6,2398.1,0.8294]